bitfinex/quotes_ETHUSD_20240825
["timestamp","ask_amount","ask_price","bid_price","bid_amount"]
[1724584393362,0.55,2762.9,2761.9,2.2993]
[1724584393562,2.4537,2762.8,2761.9,2.2993]
[1724584393763,2.4537,2762.6,2761.9,2.2993]
[1724584394064,5.4537,2762.6,2761.9,2.2993]
[1724584394295,0.55,2762.5,2761.9,2.2993]
[1724584394503,0.60037,2762.4,2761.9,2.2993]
[1724584395176,3.0,2762.5,2761.9,2.2993]
[1724584395371,3.0,2762.6,2761.9,2.2993]
[1724584398966,0.55,2762.5,2761.9,2.2993]
[1724584400802,3.0,2762.6,2761.9,2.2993]
[1724584435060,7.46,2762.7,2761.9,2.2993]
[1724584435377,7.46,2762.7,2762.0,2.65523]
[1724584436037,7.46,2762.7,2762.1,0.0723995]
[1724584436375,3.0,2762.9,2762.2,2.4253]
[1724584436777,3.0,2763.0,2762.2,2.4253]
[1724584438062,7.46,2763.1,2762.1,2.4253]
[1724584438264,7.46,2763.1,2762.3,2.4253]
[1724584442369,3.0,2763.3,2762.3,2.4253]
[1724584445143,3.0,2763.3,2762.3,2.2698]
[1724584445465,3.0,2763.3,2762.5,2.2698]
[1724584445657,3.0,2763.3,2762.6,2.34218582]
[1724584445858,3.0,2763.3,2762.8,2.2698]
[1724584446442,3.0,2763.7,2762.8,2.2698]
[1724584446655,0.55,2763.6,2762.8,2.2698]
[1724584448953,7.46,2763.8,2762.8,2.2698]
[1724584448954,0.55,2763.7,2762.8,2.2698]
[1724584449158,0.801,2763.6,2762.8,2.2698]
[1724584449395,0.55,2763.5,2762.8,2.2698]
[1724584451671,2.4092782,2764.2,2762.8,2.2698]
[1724584451886,7.46,2764.0,2762.8,2.2698]
[1724584452196,3.0915,2763.9,2762.8,2.2698]
[1724584452899,0.55,2763.8,2762.8,2.2698]
[1724584453071,3.55,2763.8,2762.8,2.2698]
[1724584456178,0.55,2763.8,2762.8,2.2698]
[1724584457609,3.746,2763.9,2762.8,2.2698]
[1724584457910,3.746,2763.9,2763.0,2.2698]
[1724584461069,3.0,2763.9,2763.0,2.2698]
[1724584463707,3.0,2763.9,2763.0,2.643997]
[1724584467975,7.46,2764.0,2763.0,2.643997]
[1724584474592,3.0781782,2764.2,2763.0,2.643997]
[1724584478317,0.55,2764.1,2763.0,2.643997]
[1724584478507,2.80241782,2764.0,2763.0,2.643997]
[1724584479530,3.55,2763.9,2763.0,2.643997]
[1724584482318,2.3477,2763.8,2763.0,2.643997]
[1724584482533,0.55,2763.7,2763.0,2.643997]
[1724584482742,3.55,2763.7,2763.0,2.643997]
[1724584482941,0.58977,2763.6,2763.0,2.643997]
[1724584483096,0.55,2763.5,2763.0,2.643997]
[1724584490643,0.55,2763.5,2763.0,0.374197]
[1724584490644,2.3477,2763.4,2763.0,0.374197]
[1724584490844,0.55,2763.3,2763.0,0.374197]
[1724584491148,2.7027,2763.2,2763.0,0.374197]
[1724584491444,3.55,2763.1,2763.0,0.374197]
[1724584491655,0.55,2763.1,2763.0,0.374197]
[1724584491875,3.55,2763.1,2763.0,0.374197]
[1724584504930,0.55,2763.1,2763.0,0.374197]
[1724584505256,0.55,2763.2,2763.0,0.374197]
[1724584506027,0.55,2763.4,2763.0,0.374197]
[1724584507646,3.0,2763.5,2763.0,0.374197]
[1724584508962,0.55,2763.4,2763.0,0.374197]
[1724584512060,0.55,2763.4,2763.1,2.4531]
[1724584512259,0.55,2763.4,2763.1,2.7358297]
[1724584512436,0.55,2763.5,2763.1,2.7358297]
[1724584514525,3.55,2763.5,2763.1,2.7358297]
[1724584515348,3.55,2763.5,2763.1,2.4531]
[1724584523438,7.46,2763.6,2763.1,2.4531]
[1724584528743,3.0,2763.8,2763.1,2.4531]
[1724584529056,0.55,2763.7,2763.1,2.4531]
[1724584544224,0.55,2763.7,2763.1,2.4531]
[1724584556443,2.8605,2763.7,2763.1,2.4531]
[1724584556765,3.58605,2763.6,2763.1,2.4531]
[1724584556968,0.55,2763.5,2763.1,2.4531]
[1724584560772,0.55,2763.5,2763.0,0.374197]
[1724584568040,0.55,2763.5,2763.1,2.4217]
[1724584568576,0.55,2763.4,2763.1,2.4217]
[1724584568749,0.55,2763.7,2763.1,2.4217]
[1724584568955,0.355,2763.6,2763.1,2.4217]
[1724584569178,0.55,2763.5,2763.1,2.4217]
[1724584570643,0.55,2763.5,2763.0,0.374197]
[1724584570644,3.55,2763.5,2763.0,0.374197]
[1724584571347,0.55,2763.5,2763.0,0.374197]
[1724584575512,0.55,2763.5,2763.1,2.4217]
[1724584575832,0.9405,2763.5,2763.1,2.4217]
[1724584576823,0.9405,2763.5,2763.0,0.374197]
[1724584580412,0.55,2763.5,2763.1,2.4217]
[1724584580618,0.55,2763.6,2763.1,2.4217]
[1724584583217,2.3779,2763.5,2763.0,0.374197]
[1724584583391,0.84279,2763.4,2763.0,0.374197]
[1724584583713,3.84279,2763.4,2763.0,0.374197]
[1724584583923,2.3779,2763.3,2763.0,0.374197]
[1724584584083,5.3779,2763.3,2763.0,0.374197]
[1724584584283,0.55,2763.2,2763.0,0.374197]
[1724584584483,0.59279,2763.1,2763.0,0.374197]
[1724584584686,1.14279,2763.1,2763.0,0.374197]
[1724584587402,0.55,2763.1,2763.0,0.374197]
[1724584589391,0.55,2763.3,2763.0,0.374197]
[1724584604833,2.2803,2763.2,2763.0,0.374197]
[1724584605011,2.8303,2763.1,2763.0,0.374197]
[1724584605211,5.8303,2763.1,2763.0,0.374197]
[1724584605526,6.71333,2763.1,2763.0,0.374197]
[1724584616176,4.43303,2763.1,2763.0,0.374197]
[1724584616351,1.43303,2763.1,2763.0,0.374197]
[1724584618559,2.9123,2763.1,2763.0,0.374197]
[1724584618860,5.9123,2763.1,2763.0,0.374197]
[1724584622088,2.3623,2763.0,2760.9,2.3636]
[1724584622290,2.3623,2762.9,2760.9,2.3636]
[1724584622440,2.9123,2762.9,2760.9,2.3636]
[1724584622643,3.59123,2762.8,2761.1,2.2824]
[1724584622853,0.55,2762.7,2761.1,2.2824]
[1724584623386,2.4949,2762.6,2761.1,2.2824]
[1724584623583,5.4949,2762.6,2761.1,2.2824]
[1724584623894,0.55,2762.5,2761.1,2.2824]
[1724584624042,0.30449,2762.4,2761.1,2.51064]
[1724584624236,0.55,2762.3,2761.1,2.51064]
[1724584624682,2.4949,2762.2,2761.1,2.51064]
[1724584624990,0.55,2762.1,2761.1,2.51064]
[1724584625203,3.55,2762.1,2761.1,2.51064]
[1724584625361,0.90449,2762.0,2761.1,2.51064]
[1724584625685,0.55,2761.9,2761.1,2.51064]
[1724584626580,0.55,2762.0,2761.1,2.51064]
[1724584626884,3.0,2762.2,2761.1,2.51064]
[1724584626885,0.55,2762.1,2761.1,2.51064]
[1724584628461,0.55,2762.1,2761.1,2.2824]
[1724584631978,0.55,2762.3,2761.1,2.2824]
[1724584636581,0.54876336,2762.3,2761.1,2.2824]
[1724584643681,2.4549,2762.2,2761.1,2.2824]
[1724584644019,0.55,2762.1,2761.1,2.2824]
[1724584644204,0.60049,2762.0,2761.1,2.2824]
[1724584644396,0.55,2761.9,2761.1,2.2824]
[1724584645783,0.60049,2762.0,2761.1,2.2824]
[1724584645984,3.06308645,2762.6,2761.1,2.2824]
[1724584647033,0.55,2762.5,2761.1,2.2824]
[1724584652537,0.56781229,2762.4,2761.1,2.2824]
[1724584652752,0.55,2762.3,2761.1,2.2824]
[1724584657055,2.8172,2762.3,2761.1,2.2824]
[1724584657259,3.33850123,2762.2,2761.1,2.2824]
[1724584657459,0.55,2762.1,2761.1,2.2824]
[1724584668237,8.01,2762.1,2761.1,2.2824]
[1724584668639,3.0,2762.0,2761.1,2.2824]
[1724584668865,0.55,2761.9,2761.1,2.2824]
[1724584669174,0.355,2761.8,2761.1,2.2824]
[1724584669343,0.55,2761.7,2761.1,2.2824]
[1724584678487,3.0,2762.0,2761.1,2.2824]
[1724584679590,7.46,2762.1,2760.8,2.4391]
[1724584679790,7.46,2762.1,2761.3,2.4391]
[1724584679970,7.46,2762.1,2761.5,2.4391]
[1724584681186,3.55,2762.0,2761.5,2.4391]
[1724584704322,3.0,2762.0,2761.5,2.4391]
[1724584727300,2.4811,2761.9,2760.9,2.3604]
[1724584727505,3.0311,2761.9,2760.9,2.3604]
[1724584727800,3.0311,2761.9,2760.6,0.75677408]
[1724584727801,2.4811,2761.7,2760.6,2.3604]
[1724584728002,2.4811,2761.5,2760.6,2.3604]
[1724584728167,5.4811,2761.5,2760.6,2.3604]
[1724584728369,2.4811,2761.5,2760.6,2.3604]
[1724584728600,2.72921,2761.5,2760.6,2.59644]
[1724584728803,3.0,2761.4,2760.6,2.59644]
[1724584737400,2.4811,2761.2,2760.6,2.3604]
[1724584738423,0.55,2761.3,2760.6,2.3604]
[1724584738772,3.0,2761.4,2760.6,2.3604]
[1724584739117,3.0,2761.3,2760.8,2.3604]
[1724584739270,5.4811,2761.7,2760.8,2.3604]
[1724584739470,0.55,2761.6,2760.8,2.3604]
[1724584739683,3.55,2761.6,2760.8,2.3604]
[1724584740690,2.4811,2761.5,2760.8,2.3604]
[1724584740882,0.60311,2761.4,2760.8,2.3604]
[1724584741085,3.60311,2761.4,2760.8,2.3604]
[1724584746211,0.60311,2761.4,2760.8,2.3604]
[1724584746427,3.55,2761.6,2760.8,2.3604]
[1724584747127,2.2774,2762.2,2761.0,2.4236]
[1724584748442,3.61996739,2763.0,2761.0,2.4236]
[1724584748635,14.4874,2762.4,2761.0,2.4236]
[1724584750140,3.0,2762.0,2761.0,2.4236]
[1724584751918,3.0,2762.3,2761.0,2.4236]
[1724584752121,3.0,2762.3,2761.1,2.66596]
[1724584757847,3.0,2762.4,2761.1,2.66596]
[1724584758044,0.55,2762.3,2761.1,2.66596]
[1724584760646,7.46,2762.5,2761.1,2.66596]
[1724584760848,0.55,2762.4,2761.1,2.66596]
[1724584761147,0.55,2762.4,2761.2,2.690196]
[1724584762027,3.55,2762.4,2761.2,2.690196]
[1724584779812,3.0,2762.4,2761.2,2.690196]
[1724584788292,3.0,2762.4,2761.2,2.690196]
[1724584796031,3.0,2762.4,2761.3,2.3136]
[1724584797707,0.55,2762.3,2761.3,2.3136]
[1724584798005,0.355,2762.2,2761.3,2.64729701]
[1724584800115,0.55,2762.3,2761.3,2.64729701]
[1724584812518,3.0,2762.4,2761.4,2.3441]
[1724584817272,3.0,2762.7,2761.4,2.3441]
[1724584817406,0.55,2762.6,2761.4,2.3441]
[1724584819643,2.4211,2762.5,2761.4,2.3441]
[1724584819842,2.4211,2762.3,2761.4,2.3441]
[1724584820139,2.4211,2762.2,2761.4,2.3441]
[1724584820341,2.9711,2762.2,2760.6,2.3441]
[1724584820527,9.8811,2761.9,2760.6,2.3441]
[1724584820704,3.55,2761.8,2760.6,2.3441]
[1724584820909,1.34311,2761.7,2760.6,2.61246791]
[1724584821134,0.55,2761.6,2760.6,2.61246791]
[1724584831219,0.55,2761.6,2760.6,2.3441]
[1724584833828,2.8453,2761.6,2760.6,2.3441]
[1724584834175,3.0,2761.5,2760.6,2.3441]
[1724584834320,0.55,2761.4,2760.6,2.3441]
[1724584835721,0.55,2761.6,2760.6,2.3441]
[1724584835922,0.355,2761.5,2760.6,2.3441]
[1724584836220,0.55,2761.4,2760.6,2.3441]
[1724584860908,2.2882,2761.6,2760.6,2.3441]
[1724584860909,3.55,2761.5,2760.6,2.3441]
[1724584861109,3.0,2761.4,2760.6,2.3441]
[1724584861315,0.55,2761.3,2760.6,2.3441]
[1724584861549,0.905,2761.3,2760.6,2.3441]
[1724584862306,0.855,2761.3,2760.6,2.3441]
[1724584869686,3.1765,2761.3,2760.6,2.3441]
[1724584869973,3.1765,2761.3,2759.6,2.372]
[1724584870182,3.0,2761.2,2759.6,2.372]
[1724584870390,2.3215,2761.0,2759.8,2.372]
[1724584870553,5.3215,2761.0,2759.8,2.372]
[1724584870877,2.3215,2760.8,2759.8,2.372]
[1724584871033,5.3215,2760.8,2759.8,2.372]
[1724584871261,1.13715,2760.7,2759.8,2.372]
[1724584871636,4.13715,2760.7,2759.8,2.372]
[1724584873176,2.3215,2760.6,2759.8,2.372]
[1724584873475,0.55,2760.5,2759.8,2.372]
[1724584873843,3.55,2760.5,2759.8,2.372]
[1724584874043,0.7825,2760.4,2759.8,2.372]
[1724584874267,0.55,2760.3,2759.8,2.372]
[1724584879083,2.4691,2760.2,2759.3,2.2689]
[1724584879385,0.55,2760.1,2759.3,2.2689]
[1724584879704,3.55,2760.1,2759.3,2.2689]
[1724584879867,4.45191,2760.1,2759.3,2.2689]
[1724584880993,0.55,2760.1,2759.3,2.2689]
[1724584881188,3.0,2760.0,2759.3,2.2689]
[1724584881376,0.55,2759.9,2759.3,2.2689]
[1724584885088,3.0,2760.5,2759.3,2.2689]
[1724584885302,2.3445,2760.6,2759.3,2.2689]
[1724584885510,0.78445,2760.5,2759.4,2.65549]
[1724584885690,3.78445,2760.5,2759.4,2.65549]
[1724584885895,0.55,2760.5,2759.4,2.65549]
[1724584886089,0.55,2760.7,2759.4,2.65549]
[1724584886318,8.01,2760.7,2759.4,2.65549]
[1724584886488,3.0,2760.6,2759.4,2.65549]
[1724584886691,1.651,2760.5,2759.6,2.4286]
[1724584887829,2.3445,2761.0,2759.6,2.4286]
[1724584887983,7.46,2761.1,2759.7,2.50106921]
[1724584888182,7.46,2761.1,2759.9,2.4286]
[1724584888386,7.46,2761.1,2759.2,0.49758127]
[1724584888387,0.746,2761.0,2760.1,2.4286]
[1724584889140,7.46,2761.1,2760.1,2.4286]
[1724584890389,3.0,2761.0,2760.1,2.4286]
[1724584890825,0.55,2760.9,2760.1,2.4286]
[1724584892184,0.55,2761.1,2760.1,2.4286]
[1724584894483,0.55,2761.2,2760.1,2.4286]
[1724584894685,0.55,2761.2,2760.3,2.4286]
[1724584896712,0.54038812,2761.2,2760.3,2.4286]
[1724584910925,3.0,2761.3,2760.3,2.4286]
[1724584911243,3.61996739,2761.6,2760.4,0.56670944]
[1724584911452,3.61996739,2761.6,2760.0,2.2923]
[1724584911634,3.61996739,2761.6,2760.2,2.2923]
[1724584911838,3.61996739,2761.6,2760.3,2.85900187]
[1724584912180,3.61996739,2761.6,2760.5,2.2923]
[1724584912320,0.55,2761.5,2760.5,2.2923]
[1724584912768,3.55,2761.5,2760.5,2.2923]
[1724584912986,3.55,2761.5,2760.7,2.2923]
[1724584913196,3.0,2761.5,2760.7,2.2923]
[1724584913335,3.0,2762.0,2760.7,2.2923]
[1724584913646,3.0,2762.1,2760.7,2.2923]
[1724584914462,0.55,2762.0,2760.7,2.2923]
[1724584914639,0.55,2762.1,2760.9,2.2923]
[1724584917474,0.55,2762.2,2760.9,2.2923]
[1724584917810,3.0,2762.3,2760.9,2.2923]
[1724584917954,5.59972038,2762.5,2760.9,2.2923]
[1724584917955,3.0,2762.4,2760.9,2.2923]
[1724584919144,0.55,2762.3,2760.9,2.2923]
[1724584919286,0.355,2762.2,2761.1,2.2923]
[1724584919612,0.55,2762.1,2761.1,2.2923]
[1724584931971,0.613021,2762.1,2761.1,2.2923]
[1724584932171,3.023321,2762.1,2761.1,2.2923]
[1724584932371,3.0,2762.0,2761.1,2.2923]
[1724584932569,1.1523321,2761.9,2761.1,2.2923]
[1724584933700,0.55,2761.9,2761.1,2.2923]
[1724584934099,0.55,2762.0,2761.1,2.2923]
[1724584937392,0.55,2762.1,2761.1,2.2923]
[1724584953253,10.59749869,2762.6,2761.1,2.2923]
[1724584953749,7.46,2762.6,2761.1,2.2923]
[1724584953950,1.05996825,2762.5,2761.3,2.3647]
[1724584954516,0.55,2762.4,2761.3,2.3647]
[1724584957010,3.0,2762.5,2761.3,2.3647]
[1724584958334,0.55,2762.4,2761.3,2.3647]
[1724584979126,3.69028694,2762.4,2761.3,2.3647]
[1724584979341,3.67533093,2762.3,2761.3,2.3647]
[1724584979524,0.55,2762.2,2761.3,2.3647]
[1724584982239,3.69028694,2762.2,2761.3,2.3647]
[1724584982426,8.59618694,2762.1,2761.3,2.3647]
[1724584982629,3.14028694,2761.9,2761.3,2.3647]
[1724584982828,3.55,2762.0,2761.3,2.3647]
[1724584982829,1.21902869,2761.8,2761.3,2.3647]
[1724584986474,4.21902869,2761.8,2761.3,2.3647]
[1724584986859,1.21902869,2761.8,2761.3,2.3647]
[1724584996489,4.21902869,2761.8,2761.3,2.3647]
[1724584996789,1.21902869,2761.8,2761.3,2.3647]
[1724584997086,0.42190287,2761.7,2761.3,2.3647]
[1724584997292,0.55,2761.6,2761.3,2.3647]
[1724585011886,0.38782876,2761.6,2761.3,2.3647]
[1724585012503,0.66902869,2761.8,2761.3,2.3647]
[1724585014017,0.55,2761.7,2761.3,2.3647]
[1724585018899,6.14021142,2761.9,2761.3,2.60117]
[1724585019104,7.46,2762.0,2761.3,2.60117]
[1724585020504,3.55,2761.9,2761.3,2.60117]
[1724585028839,0.55,2761.9,2761.3,2.60117]
[1724585029011,0.55,2762.0,2761.3,2.60117]
[1724585034278,1.21927454,2762.0,2761.3,2.3647]
[1724585041376,0.55,2762.0,2761.3,2.3647]
[1724585042549,3.55,2762.0,2761.3,2.3647]
[1724585042749,0.55,2762.0,2761.3,2.3647]
[1724585042951,0.55,2761.9,2761.3,2.3647]
[1724585043200,11.22717961,2762.6,2761.3,2.3647]
[1724585043506,11.22717961,2762.6,2761.4,2.58218411]
[1724585043851,11.22717961,2762.6,2761.4,2.50977]
[1724585044047,7.46,2762.6,2761.4,2.50977]
[1724585044240,3.14166376,2762.5,2761.4,2.50977]
[1724585044465,3.14166376,2762.5,2761.5,2.524277]
[1724585044658,3.0,2762.4,2761.5,2.524277]
[1724585045404,3.0,2762.5,2761.5,2.524277]
[1724585047129,3.0,2762.6,2761.5,2.524277]
[1724585047269,0.55,2762.5,2761.5,2.524277]
[1724585047468,0.55,2762.5,2761.7,2.2733]
[1724585051498,0.55,2762.7,2761.7,2.2733]
[1724585069142,5.98444865,2762.7,2761.7,2.2733]
[1724585069460,3.0,2762.6,2761.7,2.2733]
[1724585069605,0.55,2762.5,2761.7,2.2733]
[1724585069800,0.355,2762.4,2761.7,2.2733]
[1724585070001,0.55,2762.3,2761.7,2.2733]
[1724585070202,3.55,2762.3,2761.7,2.2733]
[1724585074253,3.71350546,2762.3,2761.7,2.2733]
[1724585075850,6.85305969,2762.3,2761.7,2.2733]
[1724585076053,0.72080597,2762.2,2761.7,2.2733]
[1724585076274,0.55,2762.1,2761.7,2.2733]
[1724585077363,0.55,2762.1,2759.9,1.70130536]
[1724585077364,9.16225423,2762.1,2761.4,2.466]
[1724585077531,3.0,2762.0,2761.4,2.466]
[1724585077728,1.46622542,2761.9,2761.4,2.466]
[1724585078362,0.55,2761.9,2761.4,2.466]
[1724585078534,0.55,2762.0,2761.4,2.466]
[1724585084339,3.55,2762.1,2761.4,2.466]
[1724585085582,6.6886098,2762.1,2761.4,2.466]
[1724585086768,3.55,2762.1,2761.4,2.466]
[1724585087073,0.98543681,2762.0,2761.4,2.466]
[1724585087277,0.55,2761.9,2761.4,2.466]
[1724585094253,0.55,2762.0,2761.4,2.466]
[1724585107801,0.61305702,2762.0,2761.4,2.466]
[1724585109472,3.75331449,2762.0,2761.4,2.466]
[1724585109669,3.67533145,2761.9,2761.4,2.466]
[1724585109983,0.55,2761.8,2760.0,2.4652]
[1724585110305,7.46,2761.5,2760.0,2.4652]
[1724585110508,3.55,2761.4,2760.0,2.4652]
[1724585110689,3.55,2761.4,2759.7,0.75574223]
[1724585110690,3.55,2761.4,2760.2,2.4652]
[1724585116614,6.013,2761.4,2760.2,2.4652]
[1724585120778,3.55,2761.4,2760.2,2.4652]
[1724585121209,3.62153,2761.3,2760.2,2.4652]
[1724585121406,3.62228,2760.7,2760.2,2.4652]
[1724585121736,3.62228,2760.7,2760.4,2.4652]
[1724585121936,3.622,2760.9,2760.4,2.4652]
[1724585122081,3.62221,2760.8,2760.4,2.4652]
[1724585122819,3.62228,2760.7,2760.4,2.4652]
[1724585123019,3.622,2760.9,2760.4,2.4652]
[1724585123319,3.62215,2760.8,2760.6,2.3216]
[1724585124294,3.62226,2760.7,2760.6,2.3216]
[1724585126121,7.24408,2760.9,2760.6,2.3216]
[1724585126290,3.62214,2760.8,2760.6,2.3216]
[1724585131196,3.62226,2760.7,2760.6,2.3216]
[1724585131395,3.62226,2760.7,2760.6,2.58474668]
[1724585135327,3.62226,2760.7,2760.6,3.15143823]
[1724585139764,3.62226,2760.7,2760.6,3.15144171]
[1724585139899,7.24452,2760.7,2760.6,2.88829503]
[1724585140097,8.91249,2761.4,2760.1,2.3216]
[1724585140098,3.62267,2760.4,2760.1,2.3216]
[1724585140359,3.62223,2760.8,2760.1,2.3216]
[1724585140917,0.591306,2760.9,2760.1,2.3216]
[1724585141116,0.591306,2760.9,2759.6,2.3216]
[1724585141117,7.24657,2760.0,2759.6,2.3216]
[1724585141337,3.62327,2760.0,2759.6,2.3216]
[1724585143951,3.62353,2759.8,2759.6,2.3216]
[1724585146354,3.62335,2759.9,2759.6,2.3216]
[1724585148620,3.62324,2760.0,2759.6,2.3216]
[1724585153673,7.24652,2760.0,2759.6,2.3216]
[1724585154877,3.62332,2759.9,2759.6,2.3216]
[1724585155078,3.62332,2759.9,2759.7,0.23216]
[1724585159125,3.62332,2759.9,2759.8,2.3031]
[1724585166275,7.24626,2760.1,2759.8,2.3031]
[1724585166453,3.62319,2760.0,2759.8,2.3031]
[1724585168068,3.62331,2759.9,2759.8,2.3031]
[1724585168269,3.62331,2759.9,2759.8,2.556626]
[1724585185294,3.62309,2760.1,2759.8,2.556626]
[1724585185494,3.62256,2760.5,2759.8,2.556626]
[1724585185495,3.62261,2760.5,2759.9,2.4092]
[1724585186282,3.62261,2760.5,2760.0,2.4092]
[1724585186480,3.62261,2760.5,2760.1,0.60325]
[1724585186481,7.24523,2760.5,2760.1,0.60325]
[1724585186681,3.62261,2760.5,2760.1,0.60325]
[1724585186905,3.62269,2760.4,2760.1,0.60325]
[1724585188432,3.62269,2760.4,2760.2,2.4092]
[1724585189203,7.24546,2760.4,2760.2,2.4092]
[1724585189927,3.62269,2760.4,2760.2,2.4092]
[1724585190105,3.62279,2760.3,2760.2,2.4092]
[1724585190316,3.62279,2760.3,2759.9,2.4092]
[1724585190492,3.62279,2760.3,2760.0,0.2662726]
[1724585206564,5.93572,2760.2,2759.5,2.4912]
[1724585207298,3.62319,2760.0,2759.5,6.11503]
[1724585208159,3.62319,2760.0,2759.5,2.4912]
[1724585209393,7.24647,2760.0,2759.5,2.4912]
[1724585209591,3.62319,2760.0,2759.6,0.611506]
[1724585211661,3.62298,2760.2,2759.6,0.611506]
[1724585211994,3.62308,2760.1,2759.6,0.611506]
[1724585212198,3.62308,2760.1,2759.7,2.4912]
[1724585219720,3.62259,2760.5,2759.7,2.318]
[1724585220019,3.62251,2760.6,2760.1,2.318]
[1724585221408,3.62255,2760.5,2760.1,2.318]
[1724585221985,7.24517,2760.5,2760.1,2.318]
[1724585222502,3.62255,2760.5,2760.1,2.318]
[1724585222715,3.62255,2760.5,2760.2,0.594116]
[1724585228495,3.62232,2760.7,2760.3,2.2723]
[1724585231908,7.24418,2760.9,2760.3,2.2723]
[1724585232114,7.24418,2760.9,2760.4,2.2723]
[1724585232309,3.62214,2760.8,2760.5,0.589508]
[1724585232927,3.62214,2760.8,2760.4,2.2723]
[1724585235765,7.24416,2760.9,2760.4,2.2723]
[1724585235967,3.62207,2760.9,2760.4,2.2723]
[1724585240506,3.62207,2760.9,2760.4,5.89492]
[1724585241416,3.62207,2760.9,2760.5,2.2723]
[1724585241623,3.62207,2760.9,2760.6,0.589489]
[1724585244619,7.24415,2760.9,2760.6,0.589489]
[1724585245117,3.62207,2760.9,2760.6,0.589489]
[1724585246516,7.24417,2760.9,2760.6,0.589489]
[1724585246920,3.62214,2760.8,2760.6,0.589489]
[1724585247129,3.62214,2760.8,2760.5,2.2723]
[1724585247924,3.62207,2760.9,2760.5,2.2723]
[1724585248418,7.24417,2760.9,2760.5,2.2723]
[1724585254420,3.62207,2760.9,2760.5,2.2723]
[1724585254935,3.62207,2760.9,2759.8,4.37914223]
[1724585254936,3.62154,2761.3,2760.8,2.359]
[1724585255106,7.24259,2761.5,2761.0,2.359]
[1724585255308,3.62129,2761.5,2761.0,2.359]
[1724585256127,3.62135,2761.4,2761.0,2.359]
[1724585256425,3.62135,2761.4,2761.2,2.359]
[1724585257799,3.62129,2761.5,2761.2,2.359]
[1724585260725,3.62129,2761.5,2761.2,2.43142352]
[1724585261494,3.62102,2761.7,2761.2,2.359]
[1724585261692,3.62102,2761.7,2761.4,2.359]
[1724585262818,3.62109,2761.6,2761.4,2.359]
[1724585264110,3.62102,2761.7,2761.4,2.359]
[1724585266928,7.24209,2761.7,2761.2,2.4354]
[1724585267137,3.62112,2761.6,2761.2,2.4354]
[1724585267446,3.62112,2761.6,2761.2,3.041105]
[1724585270401,5.89312,2761.6,2760.9,6.05733]
[1724585270619,5.89312,2761.6,2761.0,0.56656812]
[1724585270832,5.89312,2761.6,2760.9,6.05733]
[1724585271031,5.89312,2761.6,2761.0,0.56656867]
[1724585271231,3.6214,2761.4,2761.0,0.66238987]
[1724585271435,9.51432,2761.6,2761.0,0.66238987]
[1724585271608,3.62112,2761.6,2761.1,2.4354]
[1724585272139,3.62112,2761.6,2761.1,6.05707]
[1724585272322,3.62096,2761.7,2761.2,4.29354599]
[1724585273134,3.62087,2761.8,2761.3,2.4354]
[1724585273327,3.62096,2761.7,2761.3,2.4354]
[1724585278539,3.62096,2761.7,2761.3,2.4354]
[1724585281642,3.62071,2761.9,2761.3,3.6214]
[1724585281847,3.62071,2761.9,2761.4,2.4354]
[1724585282449,7.24149,2761.9,2761.4,2.4354]
[1724585282663,3.62083,2761.8,2761.4,2.4354]
[1724585285216,3.62096,2761.7,2761.4,2.4354]
[1724585292556,3.62096,2761.7,2761.4,3.1082876]
[1724585308007,3.62096,2761.7,2761.4,2.4354]
[1724585311385,7.24199,2761.7,2761.4,2.4354]
[1724585312028,3.62096,2761.7,2761.4,2.4354]
[1724585313319,3.62096,2761.7,2761.2,4.29345599]
[1724585314425,3.62096,2761.7,2761.3,2.4394]
[1724585314603,3.62096,2761.7,2761.4,0.6732856]
[1724585322125,3.62096,2761.7,2761.5,2.4394]
[1724585322308,3.62076,2761.9,2761.5,2.4394]
[1724585322745,3.62091,2761.8,2761.5,2.4394]
[1724585323425,3.62096,2761.7,2761.5,2.4394]
[1724585325537,3.62051,2762.1,2761.5,2.68334]
[1724585325704,3.62051,2762.1,2761.6,0.07241215]
[1724585327099,3.62071,2761.9,2761.6,0.07241215]
[1724585327302,3.62071,2761.9,2761.5,2.4394]
[1724585328231,3.62071,2761.9,2761.6,0.07241305]
[1724585329317,3.62071,2761.9,2761.5,2.4394]
[1724585329637,3.62071,2761.9,2761.6,0.606067]
[1724585331052,3.62071,2761.9,2761.6,0.67848008]
[1724585331354,3.62051,2762.1,2761.6,0.67848008]
[1724585331651,3.62051,2762.1,2761.7,2.4505]
[1724585331840,3.62024,2762.3,2761.7,2.4505]
[1724585332041,3.6203,2762.2,2761.8,0.6677567]
[1724585332629,3.6203,2762.2,2761.7,2.4505]
[1724585334961,3.62024,2762.3,2761.7,2.4505]
[1724585335159,3.62024,2762.3,2761.8,2.4505]
[1724585335355,3.62024,2762.3,2761.8,3.62081]
[1724585335548,3.62024,2762.3,2761.9,2.4505]
[1724585335730,3.62024,2762.3,2762.0,0.607131]
[1724585337060,3.62024,2762.3,2761.9,2.4505]